[Event "Chess Stars Match"]
[Site "Teatro Capri, Paterna, Spain"]
[Date "2019.12.15"]
[Round "7.2"]
[White "Hamitevici, Vladimir"]
[Black "Semenova, Elena"]
[Result "1/2-1/2"]
[TimeControl "7m+3s"]
[WhiteTitle "GM"]
[BlackTitle "WIM"]
[WhiteFideId "13902393"]
[BlackFideId "24125148"]
[WhiteElo "2453"]
[BlackElo "2290"]

1. Nc3 {[%clk 00:03:01]} {[%emt 00:00:05]} e5 {[%clk 00:04:04]} {[%emt
00:00:02]} 2. d3 {[%clk 00:02:56]} {[%emt 00:00:07]} d5 {[%clk 00:04:03]}
{[%emt 00:00:05]} 3. Nf3 {[%clk 00:02:52]} {[%emt 00:00:08]} Nc6 {[%clk
00:03:57]} {[%emt 00:00:08]} 4. g3 {[%clk 00:02:45]} {[%emt 00:00:10]} f5
{[%clk 00:03:49]} {[%emt 00:00:11]} 5. Bg2 {[%clk 00:02:38]} {[%emt 00:00:10]}
Nf6 {[%clk 00:03:39]} {[%emt 00:00:13]} 6. O-O {[%clk 00:02:37]} {[%emt
00:00:04]} e4 {[%clk 00:03:26]} {[%emt 00:00:16]} 7. Ne1 {[%clk 00:01:59]}
{[%emt 00:00:41]} Be7 {[%clk 00:02:12]} {[%emt 00:01:17]} 8. dxe4 {[%clk
00:01:13]} {[%emt 00:00:49]} fxe4 {[%clk 00:02:04]} {[%emt 00:00:12]} 9. Bg5
{[%clk 00:01:12]} {[%emt 00:00:02]} Be6 {[%clk 00:01:59]} {[%emt 00:00:09]} 10.
e3 {[%clk 00:00:58]} {[%emt 00:00:17]} O-O {[%clk 00:01:58]} {[%emt 00:00:04]}
11. Ne2 {[%clk 00:00:51]} {[%emt 00:00:11]} h6 {[%clk 00:01:51]} {[%emt
00:00:09]} 12. Bxf6 {[%clk 00:00:32]} {[%emt 00:00:22]} Bxf6 {[%clk 00:01:53]}
{[%emt 00:00:01]} 13. c3 {[%clk 00:00:26]} {[%emt 00:00:08]} Bg4 {[%clk
00:01:36]} {[%emt 00:00:20]} 14. h3 {[%clk 00:00:21]} {[%emt 00:00:08]} Bh5
{[%clk 00:01:35]} {[%emt 00:00:04]} 15. g4 {[%clk 00:00:15]} {[%emt 00:00:10]}
Bf7 {[%clk 00:01:32]} {[%emt 00:00:06]} 16. Nc2 {[%clk 00:00:12]} {[%emt
00:00:06]} h5 {[%clk 00:01:19]} {[%emt 00:00:16]} 17. Nf4 {[%clk 00:00:13]}
{[%emt 00:00:03]} hxg4 {[%clk 00:01:19]} {[%emt 00:00:03]} 18. Qxg4 {[%clk
00:00:14]} {[%emt 00:00:02]} Qc8 {[%clk 00:01:13]} {[%emt 00:00:09]} 19. Qg3
{[%clk 00:00:13]} {[%emt 00:00:03]} Be5 {[%clk 00:00:55]} {[%emt 00:00:21]} 20.
f3 {[%clk 00:00:13]} {[%emt 00:00:03]} exf3 {[%clk 00:00:42]} {[%emt 00:00:16]}
21. Rxf3 {[%clk 00:00:12]} {[%emt 00:00:03]} Qf5 {[%clk 00:00:28]} {[%emt
00:00:17]} 22. Nd4 {[%clk 00:00:14]} {[%emt 00:00:02]} Nxd4 {[%clk 00:00:27]}
{[%emt 00:00:04]} 23. exd4 {[%clk 00:00:09]} {[%emt 00:00:08]} Bd6 {[%clk
00:00:28]} {[%emt 00:00:02]} 24. Qg4 {[%clk 00:00:08]} {[%emt 00:00:04]} Qxg4
{[%clk 00:00:25]} {[%emt 00:00:06]} 25. hxg4 {[%clk 00:00:10]} {[%emt
00:00:01]} Rae8 {[%clk 00:00:21]} {[%emt 00:00:08]} 26. Raf1 {[%clk 00:00:09]}
{[%emt 00:00:04]} c6 {[%clk 00:00:20]} {[%emt 00:00:04]} 27. R3f2 {[%clk
00:00:07]} {[%emt 00:00:05]} Bxf4 {[%clk 00:00:12]} {[%emt 00:00:11]} 28. Rxf4
{[%clk 00:00:08]} {[%emt 00:00:01]} Be6 {[%clk 00:00:12]} {[%emt 00:00:03]} 29.
Kh2 {[%clk 00:00:05]} {[%emt 00:00:06]} Rxf4 {[%clk 00:00:11]} {[%emt
00:00:05]} 30. Rxf4 {[%clk 00:00:07]} g5 {[%clk 00:00:10]} {[%emt 00:00:04]} 31.
Rf3 {[%clk 00:00:05]} {[%emt 00:00:06]} Kg7 {[%clk 00:00:10]} {[%emt 00:00:02]}
32. Kg3 {[%clk 00:00:06]} {[%emt 00:00:01]} Rh8 {[%clk 00:00:11]} {[%emt
00:00:02]} 33. Re3 {[%clk 00:00:06]} {[%emt 00:00:03]} Kf6 {[%clk 00:00:13]} 34.
Rf3+ {[%clk 00:00:08]} {[%emt 00:00:01]} Kg7 {[%clk 00:00:15]} {[%emt
00:00:01]} 35. Re3 {[%clk 00:00:10]} {[%emt 00:00:01]} Kf6 {[%clk 00:00:17]} 36.
Rf3+ {[%clk 00:00:12]} {[%emt 00:00:02]} Kg7 {[%emt 00:00:03]} 1/2-1/2

[Event "Chess Stars Match"]
[Site "Teatro Capri, Paterna, Spain"]
[Date "2019.12.15"]
[Round "7.3"]
[White "Injac, Teodora"]
[Black "Llobell Cortell, Enrique"]
[Result "0-1"]
[TimeControl "7m+3s"]
[WhiteTitle "WIM"]
[BlackTitle "IM"]
[WhiteFideId "932400"]
[BlackFideId "2216116"]
[WhiteElo "2284"]
[BlackElo "2401"]

1. d4 {[%clk 00:04:03]} {[%emt 00:00:02]} Nf6 {[%clk 00:04:05]} {[%emt
00:00:02]} 2. Nf3 {[%clk 00:04:05]} {[%emt 00:00:01]} d5 {[%clk 00:04:07]} 3.
c4 {[%clk 00:04:07]} {[%emt 00:00:01]} e6 {[%clk 00:04:08]} {[%emt 00:00:03]} 4.
Nc3 {[%clk 00:04:09]} {[%emt 00:00:02]} dxc4 {[%clk 00:04:09]} {[%emt
00:00:02]} 5. e3 {[%clk 00:04:10]} {[%emt 00:00:01]} a6 {[%clk 00:04:11]}
{[%emt 00:00:02]} 6. a4 {[%clk 00:04:09]} {[%emt 00:00:03]} c5 {[%clk
00:04:09]} {[%emt 00:00:05]} 7. Bxc4 {[%clk 00:04:11]} {[%emt 00:00:02]} Nc6
{[%clk 00:04:02]} {[%emt 00:00:10]} 8. O-O {[%clk 00:04:10]} {[%emt 00:00:04]}
Be7 {[%clk 00:03:51]} {[%emt 00:00:13]} 9. Qe2 {[%clk 00:04:09]} {[%emt
00:00:05]} cxd4 {[%clk 00:03:50]} {[%emt 00:00:04]} 10. Rd1 {[%clk 00:04:09]}
{[%emt 00:00:02]} O-O {[%clk 00:03:41]} {[%emt 00:00:11]} 11. exd4 {[%clk
00:04:10]} {[%emt 00:00:03]} Qc7 {[%clk 00:03:06]} {[%emt 00:00:39]} 12. Bg5
{[%clk 00:02:30]} {[%emt 00:01:42]} Re8 {[%clk 00:02:13]} {[%emt 00:00:56]} 13.
Ba2 {[%clk 00:01:45]} {[%emt 00:00:47]} Bd7 {[%clk 00:02:08]} {[%emt 00:00:08]}
14. Rac1 {[%clk 00:01:40]} {[%emt 00:00:09]} Qa5 {[%clk 00:02:01]} {[%emt
00:00:10]} 15. Ne5 {[%clk 00:01:27]} {[%emt 00:00:16]} Rad8 {[%clk 00:01:54]}
{[%emt 00:00:10]} 16. Qf3 {[%clk 00:00:49]} {[%emt 00:00:40]} Nxd4 {[%clk
00:01:47]} {[%emt 00:00:11]} 17. Rxd4 {[%clk 00:00:38]} {[%emt 00:00:14]} Qxe5
{[%clk 00:01:49]} {[%emt 00:00:01]} 18. Rdd1 {[%clk 00:00:09]} {[%emt
00:00:32]} Qxg5 {[%emt 00:00:04]} 0-1

[Event "Chess Stars Match"]
[Site "Teatro Capri, Paterna, Spain"]
[Date "2019.12.15"]
[Round "7.4"]
[White "Randazzo, Adrian"]
[Black "Macias Pino, Diego"]
[Result "0-1"]
[TimeControl "7m+3s"]
[WhiteTitle "FM"]
[WhiteFideId "114251"]
[BlackFideId "24529133"]
[WhiteElo "2230"]
[BlackElo "2161"]

1. Nf3 {[%clk 00:04:05]} d5 {[%clk 00:06:04]} {[%emt 00:00:02]} 2. e3 {[%clk
00:04:07]} c6 {[%clk 00:06:06]} {[%emt 00:00:01]} 3. c4 {[%clk 00:04:08]}
{[%emt 00:00:01]} Nf6 {[%clk 00:06:06]} {[%emt 00:00:03]} 4. Nc3 {[%clk
00:04:10]} {[%emt 00:00:01]} g6 {[%clk 00:06:07]} {[%emt 00:00:03]} 5. d4
{[%clk 00:04:09]} {[%emt 00:00:04]} Bg7 {[%clk 00:06:08]} {[%emt 00:00:01]} 6.
Be2 {[%clk 00:04:10]} {[%emt 00:00:01]} O-O {[%clk 00:06:08]} {[%emt 00:00:03]}
7. O-O {[%clk 00:04:09]} {[%emt 00:00:05]} Nbd7 {[%clk 00:06:04]} {[%emt
00:00:08]} 8. cxd5 {[%clk 00:04:05]} {[%emt 00:00:06]} cxd5 {[%clk 00:06:04]}
{[%emt 00:00:03]} 9. Qb3 {[%clk 00:04:00]} {[%emt 00:00:07]} Nb6 {[%clk
00:06:06]} {[%emt 00:00:02]} 10. Ne5 {[%clk 00:03:56]} {[%emt 00:00:07]} Be6
{[%clk 00:05:58]} {[%emt 00:00:11]} 11. Bd2 {[%clk 00:03:55]} {[%emt 00:00:04]}
Nfd7 {[%clk 00:06:00]} {[%emt 00:00:01]} 12. f4 {[%clk 00:03:49]} {[%emt
00:00:09]} Nxe5 {[%clk 00:05:43]} {[%emt 00:00:20]} 13. fxe5 {[%clk 00:03:47]}
{[%emt 00:00:04]} Nc4 {[%clk 00:05:24]} {[%emt 00:00:23]} 14. Qc2 {[%clk
00:02:53]} {[%emt 00:00:57]} Bh6 {[%clk 00:05:16]} {[%emt 00:00:11]} 15. Bxc4
{[%clk 00:02:42]} {[%emt 00:00:14]} dxc4 {[%clk 00:05:18]} {[%emt 00:00:01]} 16.
Rad1 {[%clk 00:02:35]} {[%emt 00:00:09]} Bg7 {[%clk 00:05:15]} {[%emt
00:00:06]} 17. Be1 {[%clk 00:02:28]} {[%emt 00:00:10]} Bf5 {[%clk 00:05:08]}
{[%emt 00:00:10]} 18. Qa4 {[%clk 00:02:02]} {[%emt 00:00:29]} Bd3 {[%clk
00:05:09]} {[%emt 00:00:02]} 19. Rxd3 {[%clk 00:01:42]} {[%emt 00:00:23]} cxd3
{[%clk 00:05:10]} {[%emt 00:00:02]} 20. Qb5 {[%clk 00:01:45]} {[%emt 00:00:01]}
a6 {[%clk 00:04:54]} {[%emt 00:00:19]} 21. Qxd3 {[%clk 00:01:46]} {[%emt
00:00:01]} Bxe5 {[%clk 00:04:55]} {[%emt 00:00:02]} 22. Qe4 {[%clk 00:01:46]}
{[%emt 00:00:04]} Bg7 {[%clk 00:04:52]} {[%emt 00:00:06]} 23. Bh4 {[%clk
00:01:46]} {[%emt 00:00:03]} f6 {[%clk 00:04:31]} {[%emt 00:00:24]} 24. b3
{[%clk 00:01:31]} {[%emt 00:00:18]} Qd7 {[%clk 00:04:10]} {[%emt 00:00:23]} 25.
Nd5 {[%emt 00:00:04]} Rae8 {[%clk 00:04:10]} {[%emt 00:00:01]} 26. Nb6 {[%clk
00:01:17]} {[%emt 00:00:18]} Qc6 {[%clk 00:03:50]} {[%emt 00:00:24]} 27. Qxc6
{[%clk 00:01:18]} {[%emt 00:00:02]} bxc6 {[%clk 00:03:52]} {[%emt 00:00:01]} 28.
Nd7 {[%clk 00:01:20]} Rf7 {[%clk 00:03:49]} {[%emt 00:00:06]} 29. Nc5 {[%clk
00:01:21]} {[%emt 00:00:02]} e5 {[%clk 00:03:26]} {[%emt 00:00:26]} 30. Nxa6
{[%clk 00:01:18]} {[%emt 00:00:06]} exd4 {[%clk 00:03:27]} {[%emt 00:00:02]} 31.
exd4 {[%clk 00:01:21]} f5 {[%clk 00:03:12]} {[%emt 00:00:17]} 32. Rd1 {[%clk
00:01:06]} {[%emt 00:00:17]} Ra7 {[%clk 00:02:58]} {[%emt 00:00:18]} 33. Nb4
{[%clk 00:01:05]} {[%emt 00:00:03]} Bf8 {[%clk 00:02:40]} {[%emt 00:00:21]} 34.
Nxc6 {[%clk 00:00:42]} {[%emt 00:00:25]} Rxa2 {[%clk 00:02:42]} {[%emt
00:00:01]} 35. d5 {[%clk 00:00:34]} {[%emt 00:00:11]} Ree2 {[%clk 00:02:12]}
{[%emt 00:00:33]} 36. Bg3 {[%clk 00:00:33]} {[%emt 00:00:04]} Rxg2+ {[%clk
00:02:10]} {[%emt 00:00:05]} 37. Kh1 {[%clk 00:00:36]} Bc5 {[%clk 00:02:04]}
{[%emt 00:00:09]} 38. d6 {[%clk 00:00:34]} {[%emt 00:00:05]} Rad2 {[%clk
00:02:06]} {[%emt 00:00:02]} 39. Rc1 {[%clk 00:00:07]} {[%emt 00:00:30]} Rxg3
{[%clk 00:02:01]} {[%emt 00:00:08]} 40. hxg3 {[%clk 00:00:08]} {[%emt
00:00:02]} Bxd6 {[%clk 00:02:03]} 41. b4 {[%clk 00:00:06]} {[%emt 00:00:05]}
Rb2 {[%clk 00:02:00]} {[%emt 00:00:05]} 42. Rc3 {[%clk 00:00:07]} {[%emt
00:00:03]} Bxb4 {[%clk 00:01:59]} {[%emt 00:00:05]} 43. Nxb4 {[%clk 00:00:05]}
{[%emt 00:00:04]} Rxb4 {[%clk 00:02:01]} {[%emt 00:00:01]} 44. Kg2 {[%clk
00:00:07]} Rb7 {[%clk 00:02:02]} {[%emt 00:00:03]} 45. Kh3 {[%clk 00:00:08]}
{[%emt 00:00:02]} Kg7 {[%clk 00:02:03]} {[%emt 00:00:01]} 46. Rc6 {[%clk
00:00:10]} h6 {[%clk 00:02:00]} {[%emt 00:00:07]} 47. Kh4 {[%clk 00:00:12]}
{[%emt 00:00:01]} Kf7 {[%clk 00:02:00]} {[%emt 00:00:03]} 48. Ra6 {[%clk
00:00:14]} {[%emt 00:00:01]} Re7 {[%clk 00:01:59]} {[%emt 00:00:03]} 49. Rb6
{[%clk 00:00:16]} {[%emt 00:00:02]} Re6 {[%clk 00:02:01]} 50. Rb7+ {[%clk
00:00:19]} Kf6 {[%clk 00:02:04]} 51. Rb8 {[%clk 00:00:21]} Re4+ {[%clk
00:02:04]} {[%emt 00:00:03]} 52. Kh3 {[%clk 00:00:23]} Kg5 {[%clk 00:02:06]} 53.
Rb3 {[%clk 00:00:25]} {[%emt 00:00:02]} Kh5 {[%clk 00:02:03]} {[%emt 00:00:06]}
54. Rb5 {[%clk 00:00:26]} {[%emt 00:00:02]} Re3 {[%clk 00:02:04]} {[%emt
00:00:03]} 55. Kg2 {[%clk 00:00:25]} {[%emt 00:00:05]} Ra3 {[%clk 00:02:03]}
{[%emt 00:00:04]} 56. Rb4 {[%clk 00:00:26]} {[%emt 00:00:02]} g5 {[%clk
00:02:02]} {[%emt 00:00:04]} 57. Kh2 {[%clk 00:00:26]} {[%emt 00:00:02]} g4
{[%clk 00:01:53]} {[%emt 00:00:13]} 58. Rb8 {[%clk 00:00:14]} {[%emt 00:00:16]}
Ra2+ {[%clk 00:01:54]} {[%emt 00:00:02]} 59. Kg1 {[%clk 00:00:15]} {[%emt
00:00:01]} Ra6 {[%clk 00:01:45]} {[%emt 00:00:12]} 60. Kg2 {[%clk 00:00:16]}
{[%emt 00:00:02]} Rf6 {[%clk 00:01:44]} {[%emt 00:00:04]} 61. Rb4 {[%clk
00:00:15]} {[%emt 00:00:04]} Kg5 {[%clk 00:01:46]} {[%emt 00:00:01]} 62. Rb8
{[%clk 00:00:12]} {[%emt 00:00:06]} h5 {[%clk 00:01:24]} {[%emt 00:00:25]} 63.
Rg8+ {[%clk 00:00:09]} {[%emt 00:00:05]} Rg6 {[%clk 00:01:26]} {[%emt
00:00:01]} 64. Rf8 {[%clk 00:00:11]} {[%emt 00:00:01]} Rg7 {[%clk 00:01:14]}
{[%emt 00:00:15]} 65. Rh8 {[%clk 00:00:11]} {[%emt 00:00:04]} f4 {[%clk
00:01:11]} {[%emt 00:00:06]} 66. gxf4+ {[%clk 00:00:11]} {[%emt 00:00:03]} Kh4
{[%clk 00:01:13]} 67. Rf8 {[%clk 00:00:05]} {[%emt 00:00:09]} Rb7 {[%clk
00:01:14]} {[%emt 00:00:02]} 68. Rh8 {[%clk 00:00:06]} {[%emt 00:00:02]} Rf7
{[%clk 00:01:13]} {[%emt 00:00:04]} 69. Kg1 {[%clk 00:00:04]} {[%emt 00:00:05]}
Rxf4 {[%clk 00:01:14]} {[%emt 00:00:02]} 70. Kg2 {[%clk 00:00:07]} Ra4 {[%clk
00:01:16]} {[%emt 00:00:02]} 71. Rh7 {[%clk 00:00:08]} {[%emt 00:00:02]} Ra2+
{[%clk 00:01:18]} 72. Kg1 {[%clk 00:00:10]} Kg3 {[%clk 00:01:20]} {[%emt
00:00:02]} 73. Kf1 {[%clk 00:00:13]} Ra1+ {[%clk 00:01:21]} {[%emt 00:00:02]}
74. Ke2 {[%clk 00:00:14]} {[%emt 00:00:01]} h4 {[%clk 00:01:24]} {[%emt
00:00:01]} 75. Rg7 {[%clk 00:00:12]} {[%emt 00:00:05]} h3 {[%clk 00:01:25]}
{[%emt 00:00:02]} 0-1

[Event "Chess Stars Match"]
[Site "Teatro Capri, Paterna, Spain"]
[Date "2019.12.15"]
[Round "7.5"]
[White "Povshednyi, Ivan"]
[Black "Vallejo Pons, Francisco"]
[Result "0-1"]
[TimeControl "7m+3s"]
[BlackTitle "GM"]
[WhiteFideId "14190907"]
[BlackFideId "2205530"]
[WhiteElo "1795"]
[BlackElo "2704"]

1. e4 {[%clk 00:06:05]} e6 {[%clk 00:03:03]} {[%emt 00:00:03]} 2. d4 {[%clk
00:06:05]} {[%emt 00:00:02]} d5 {[%clk 00:03:05]} {[%emt 00:00:01]} 3. Nc3
{[%clk 00:06:07]} Bb4 {[%clk 00:03:07]} {[%emt 00:00:02]} 4. e5 {[%clk
00:06:09]} {[%emt 00:00:01]} c5 {[%clk 00:03:09]} 5. a3 {[%clk 00:06:10]}
{[%emt 00:00:03]} Bxc3+ {[%clk 00:03:11]} {[%emt 00:00:01]} 6. bxc3 {[%clk
00:06:12]} Qa5 {[%clk 00:03:10]} {[%emt 00:00:04]} 7. Bd2 {[%clk 00:06:12]}
{[%emt 00:00:04]} Qa4 {[%clk 00:03:12]} {[%emt 00:00:01]} 8. Nf3 {[%clk
00:06:12]} {[%emt 00:00:02]} b6 {[%clk 00:03:11]} {[%emt 00:00:04]} 9. Bd3
{[%clk 00:06:09]} {[%emt 00:00:05]} Ba6 {[%clk 00:03:10]} {[%emt 00:00:04]} 10.
Bxa6 {[%clk 00:05:42]} {[%emt 00:00:29]} Qxa6 {[%clk 00:03:08]} {[%emt
00:00:06]} 11. h4 {[%clk 00:05:25]} {[%emt 00:00:20]} Ne7 {[%clk 00:03:02]}
{[%emt 00:00:08]} 12. Rh3 {[%clk 00:05:20]} {[%emt 00:00:09]} h6 {[%clk
00:02:58]} {[%emt 00:00:07]} 13. Qe2 {[%clk 00:04:56]} {[%emt 00:00:27]} Qa4
{[%clk 00:02:53]} {[%emt 00:00:08]} 14. Be3 {[%clk 00:04:48]} {[%emt 00:00:10]}
Nd7 {[%clk 00:02:55]} {[%emt 00:00:02]} 15. Kf1 {[%clk 00:04:48]} {[%emt
00:00:03]} Rc8 {[%clk 00:02:55]} {[%emt 00:00:03]} 16. Ne1 {[%clk 00:04:45]}
{[%emt 00:00:05]} Nf5 {[%clk 00:02:31]} {[%emt 00:00:28]} 17. g4 {[%clk
00:04:43]} {[%emt 00:00:06]} Ne7 {[%clk 00:02:20]} {[%emt 00:00:15]} 18. Kg1
{[%clk 00:04:39]} {[%emt 00:00:06]} Qc4 {[%clk 00:02:15]} {[%emt 00:00:08]} 19.
Qd2 {[%clk 00:04:33]} {[%emt 00:00:09]} h5 {[%clk 00:02:14]} {[%emt 00:00:04]}
20. f3 {[%clk 00:04:26]} {[%emt 00:00:10]} cxd4 {[%clk 00:02:06]} {[%emt
00:00:11]} 21. cxd4 {[%clk 00:04:26]} {[%emt 00:00:03]} Qc3 {[%clk 00:02:02]}
{[%emt 00:00:07]} 22. Qxc3 {[%clk 00:04:08]} {[%emt 00:00:21]} Rxc3 {[%clk
00:02:03]} {[%emt 00:00:02]} 23. Bd2 {[%clk 00:04:03]} {[%emt 00:00:08]} hxg4
{[%clk 00:01:52]} {[%emt 00:00:14]} 24. Bxc3 {[%clk 00:04:03]} {[%emt
00:00:03]} gxh3 {[%clk 00:01:53]} {[%emt 00:00:02]} 25. Kh2 {[%clk 00:04:04]}
{[%emt 00:00:02]} Rxh4 {[%clk 00:01:54]} {[%emt 00:00:02]} 26. Nd3 {[%clk
00:04:05]} {[%emt 00:00:03]} Nf5 {[%clk 00:01:55]} {[%emt 00:00:03]} 27. a4
{[%clk 00:04:00]} {[%emt 00:00:08]} Nxd4 {[%clk 00:01:46]} {[%emt 00:00:11]} 28.
Bxd4 {[%clk 00:04:00]} {[%emt 00:00:02]} Rxd4 {[%clk 00:01:48]} {[%emt
00:00:02]} 29. Kxh3 {[%clk 00:03:58]} {[%emt 00:00:05]} a5 {[%clk 00:01:47]}
{[%emt 00:00:04]} 30. Kg2 {[%clk 00:03:58]} {[%emt 00:00:03]} Rc4 {[%clk
00:01:45]} {[%emt 00:00:05]} 31. Ra2 {[%clk 00:03:59]} {[%emt 00:00:02]} Nc5
{[%clk 00:01:46]} {[%emt 00:00:02]} 32. Nxc5 {[%clk 00:04:00]} {[%emt
00:00:03]} bxc5 {[%clk 00:01:46]} {[%emt 00:00:03]} 33. Rb2 {[%clk 00:04:00]}
{[%emt 00:00:02]} Rb4 {[%clk 00:01:48]} {[%emt 00:00:02]} 34. Ra2 {[%clk
00:04:01]} {[%emt 00:00:02]} g5 {[%clk 00:01:46]} {[%emt 00:00:05]} 35. Kf2
{[%clk 00:04:02]} {[%emt 00:00:01]} Ke7 {[%clk 00:01:41]} {[%emt 00:00:09]} 36.
Ke2 {[%clk 00:04:02]} {[%emt 00:00:02]} g4 {[%clk 00:01:38]} {[%emt 00:00:06]}
37. fxg4 {[%clk 00:04:00]} {[%emt 00:00:04]} Rxg4 {[%clk 00:01:39]} {[%emt
00:00:02]} 38. Rb2 {[%clk 00:04:03]} Rxa4 {[%clk 00:01:36]} {[%emt 00:00:06]}
39. Rb7+ {[%clk 00:04:04]} {[%emt 00:00:02]} Kf8 {[%clk 00:01:38]} {[%emt
00:00:01]} 40. Rb8+ {[%clk 00:04:05]} {[%emt 00:00:02]} Kg7 {[%clk 00:01:39]}
{[%emt 00:00:02]} 41. Rb5 {[%clk 00:04:06]} {[%emt 00:00:02]} Re4+ {[%clk
00:01:37]} {[%emt 00:00:04]} 42. Kd2 {[%clk 00:04:07]} {[%emt 00:00:02]} c4
{[%clk 00:01:38]} {[%emt 00:00:03]} 43. Rxa5 {[%clk 00:04:07]} {[%emt
00:00:03]} Rxe5 {[%clk 00:01:39]} {[%emt 00:00:02]} 44. Ra7 {[%clk 00:04:09]}
{[%emt 00:00:01]} Re4 {[%clk 00:01:38]} {[%emt 00:00:04]} 45. c3 {[%clk
00:04:10]} {[%emt 00:00:01]} Rg4 {[%clk 00:01:39]} {[%emt 00:00:02]} 46. Kc2
{[%clk 00:04:11]} {[%emt 00:00:01]} Rg2+ {[%clk 00:01:41]} {[%emt 00:00:02]} 47.
Kd1 {[%clk 00:04:13]} {[%emt 00:00:01]} Kf6 {[%clk 00:01:41]} {[%emt 00:00:02]}
48. Kc1 {[%clk 00:04:15]} {[%emt 00:00:02]} Rf2 {[%clk 00:01:42]} {[%emt
00:00:02]} 49. Kd1 {[%clk 00:04:16]} {[%emt 00:00:02]} Ke5 {[%clk 00:01:43]}
{[%emt 00:00:02]} 50. Ke1 {[%clk 00:04:18]} {[%emt 00:00:01]} Rf3 {[%clk
00:01:44]} {[%emt 00:00:02]} 51. Kd2 {[%clk 00:04:20]} f5 {[%clk 00:01:46]}
{[%emt 00:00:01]} 52. Kc2 {[%clk 00:04:21]} {[%emt 00:00:02]} Rf2+ {[%clk
00:01:47]} {[%emt 00:00:02]} 53. Kd1 {[%clk 00:04:23]} Ke4 {[%clk 00:01:48]}
{[%emt 00:00:03]} 54. Ke1 {[%clk 00:04:25]} {[%emt 00:00:01]} Rc2 {[%clk
00:01:50]} {[%emt 00:00:01]} 55. Ra3 {[%clk 00:04:27]} {[%emt 00:00:02]} e5
{[%clk 00:01:51]} {[%emt 00:00:02]} 56. Kd1 {[%clk 00:04:29]} {[%emt 00:00:01]}
Rh2 {[%clk 00:01:52]} {[%emt 00:00:02]} 57. Ke1 {[%clk 00:04:30]} {[%emt
00:00:02]} f4 {[%clk 00:01:53]} {[%emt 00:00:02]} 58. Kf1 {[%clk 00:04:32]} Rc2
{[%clk 00:01:51]} {[%emt 00:00:05]} 59. Ke1 {[%clk 00:04:34]} Ke3 {[%clk
00:01:51]} {[%emt 00:00:05]} 60. Kd1 {[%clk 00:04:36]} {[%emt 00:00:01]} Rd2+
{[%clk 00:01:53]} {[%emt 00:00:01]} 61. Kc1 {[%clk 00:04:38]} f3 {[%clk
00:01:52]} {[%emt 00:00:03]} 62. Ra8 {[%clk 00:04:32]} {[%emt 00:00:10]} f2
{[%clk 00:01:52]} {[%emt 00:00:03]} 63. Rf8 {[%clk 00:04:33]} {[%emt 00:00:02]}
Re2 {[%clk 00:01:52]} {[%emt 00:00:03]} 64. Kb1 {[%clk 00:04:33]} {[%emt
00:00:03]} e4 {[%clk 00:01:46]} {[%emt 00:00:09]} 65. Kc1 {[%clk 00:04:33]}
{[%emt 00:00:03]} Kd3 {[%clk 00:01:47]} {[%emt 00:00:02]} 66. Kb1 {[%clk
00:04:35]} {[%emt 00:00:01]} e3 {[%clk 00:01:48]} {[%emt 00:00:02]} 67. Ka1
{[%clk 00:04:37]} {[%emt 00:00:02]} Kxc3 {[%clk 00:01:47]} {[%emt 00:00:03]} 68.
Kb1 {[%clk 00:04:38]} {[%emt 00:00:02]} d4 {[%clk 00:01:47]} {[%emt 00:00:03]}
69. Ka1 {[%clk 00:04:39]} {[%emt 00:00:02]} d3 {[%clk 00:01:47]} {[%emt
00:00:02]} 70. Kb1 {[%clk 00:04:41]} {[%emt 00:00:01]} Rc2 {[%clk 00:01:47]}
{[%emt 00:00:03]} 71. Ka1 {[%clk 00:04:37]} {[%emt 00:00:08]} e2 {[%clk
00:01:47]} {[%emt 00:00:02]} 0-1